Cogmind - Beta 11.1 @@@ ROGUE MODE // 2022.06.26 @ 02:07:00 Player: deepledi Result: Self-destructed Performance ------------- Evolutions (5) 2500 Regions Visited (11) 2200 Robots Destroyed (171) 855 Value Destroyed (5792) 5792 Prototype IDs (21) 420 Alien Tech Used (0) 0 Bonus (1840) 1840 TOTAL SCORE: 13607 Bonus ------- High Alert Combat Kills 578 Follower Combat Kills 2104 Network Hubs Disabled 200 Friendly Fire -1042 Cogmind --------- Core Integrity 910/1000 Matter 28/300 Energy 170/170 System Corruption 6% Temperature Cool (2) Movement Treading (160) Location -5/Factory Parts ------- > --- POWER (1) -------- Light Antimatter Reactor > --- PROPULSION (6) --- Centrium Heavy Treads Centrium Heavy Treads Centrium Heavy Treads > --- UTILITY (7) ------ High-capacity Storage Unit Advanced Signal Interpreter Centrium Medium Armor Plating Centrium Medium Armor Plating > --- WEAPON (3) ------- Advanced KE Penetrator Bore Cannon > --- INVENTORY (20) --- Cooled Deuterium Engine Light Antimatter Reactor Improved Medium Treads Armored Medium Treads Armored Medium Treads Advanced Heat Sink Improved Cooling System Improved Sensor Array Layered Medium Armor Plating Improved Shield Generator System Restoration Module Advanced Variable Charge Gun Advanced Variable Charge Gun Advanced Variable Charge Gun Phase Cannon Phase Cannon Heavy Phase Cannon Neutron Cannon Scatter Rocket Array Heavy Hammer Peak State ------------ > --- POWER ------------ Quantum Reactor > --- PROPULSION ------- Centrium Heavy Treads Centrium Heavy Treads Centrium Heavy Treads > --- UTILITY ---------- Improved Cooling System High-capacity Storage Unit Advanced Signal Interpreter Centrium Medium Armor Plating Centrium Medium Armor Plating Heavy Reactive Plating > --- WEAPON ----------- Advanced Variable Charge Gun Advanced KE Penetrator Advanced KE Penetrator > --- INVENTORY -------- Light Angular Momentum Engine Light Antimatter Reactor Armored Treads Armored Medium Treads Advanced Heat Sink Improved Cooling System Improved Sensor Array Layered Medium Armor Plating Improved Shield Generator System Restoration Module Advanced Variable Charge Gun Advanced Variable Charge Gun Phase Cannon Phase Cannon Neutron Cannon Bore Cannon Scatter Rocket Array Heavy Hammer [Rating: 134] Favorites ----------- Power Light Angular Momentum Engine Engine Light Angular Momentum Engine Power Core Nuclear Core Reactor Quantum Reactor Propulsion Armored Treads Treads Armored Treads Utility High-capacity Storage Unit Device Improved Heat Sink Storage High-capacity Storage Unit Processor Improved Targeting Computer Protection Layered Medium Armor Plating Weapon Compact Ion Cannon Energy Gun Advanced Variable Charge Gun Energy Cannon Compact Ion Cannon Ballistic Gun Advanced KE Penetrator Ballistic Cannon Bore Cannon Launcher Scatter Rocket Array Impact Weapon Heavy Hammer Build | -11 -10 -9 -9 -8 -7 -6 -6 -6 -6 -6 -5 ------- Run | Scr Mat Mat Sto Mat Fac Fac Ext Cet Arc Hub Fac Slots Evolved 10 | . . 2 . 2 2 2 . . . . 2 Power . | . . . . . . . . . . . . Propulsion 4 | . . . . 1 1 2 . . . . . Utility 5 | . . 2 . 1 1 . . . . . 1 Weapon 1 | . . . . . . . . . . . 1 Parts Attached 140 | 7 8 15 19 10 21 10 18 15 . 9 8 Power 12 | 1 . 2 1 1 2 1 . 1 . . 3 Engine 8 | 1 . 2 1 . 2 1 . . . . 1 Core 1 | . . . . 1 . . . . . . . Reactor 3 | . . . . . . . . 1 . . 2 Propulsion 23 | 2 1 3 3 4 1 4 2 3 . . . Treads 23 | 2 1 3 3 4 1 4 2 3 . . . Leg . | . . . . . . . . . . . . Wheel . | . . . . . . . . . . . . Hover . | . . . . . . . . . . . . Flight . | . . . . . . . . . . . . Utility 50 | 2 4 5 4 2 15 2 4 6 . 5 1 Device 21 | 1 1 1 2 1 9 . 1 2 . 3 . Storage 4 | 1 3 . . . . . . . . . . Processor 2 | . . . 1 . . 1 . . . . . Hackware . | . . . . . . . . . . . . Protection 23 | . . 4 1 1 6 1 3 4 . 2 1 Artifact . | . . . . . . . . . . . . Weapon 55 | 2 3 5 11 3 3 3 12 5 . 4 4 Energy Gun 8 | 1 1 3 . . 1 . . 1 . 1 . Energy Cannon 19 | . 1 2 6 2 1 2 3 . . 1 1 Ballistic Gun 8 | 1 1 . 1 . . . . 2 . 1 2 Ballistic Cannon 9 | . . . . . 1 1 4 1 . 1 1 Launcher 2 | . . . 1 1 . . . . . . . Special Weapon . | . . . . . . . . . . . . Impact Weapon 9 | . . . 3 . . . 5 1 . . . Slashing Weapon . | . . . . . . . . . . . . Piercing Weapon . | . . . . . . . . . . . . Special Melee Weapon . | . . . . . . . . . . . . Unidentified Prototypes 18 | . . 4 4 1 1 1 . 4 . 2 1 Corrupted Parts 4 | . . . . . . . . 2 . 2 . System Corruption 16 | . . . . . . . . 7 . 9 . Parts Lost 18 | . 2 1 4 1 4 1 1 . . 1 3 Power 2 | . . . . . 1 . . . . . 1 Propulsion 5 | . 1 . 1 . 1 1 1 . . . . Utility 10 | . 1 1 3 1 2 . . . . 1 1 Weapon 1 | . . . . . . . . . . . 1 Highest Loss Streak 2 | . 1 1 1 1 1 1 1 . . 1 2 To Critical Strikes . | . . . . . . . . . . . . Average Slot Usage (%) 95 | . 99 98 98 99 99 98 99 81 80 79 75 Engine 7 | . 14 11 11 8 5 6 6 . . . . Reactor 1 | . . . . . . . . 5 6 6 4 Treads 27 | . 27 21 21 27 29 38 39 21 20 20 17 Device 11 | . 14 10 11 15 19 13 6 1 . 6 5 Storage 8 | . 14 11 11 9 7 6 6 6 6 6 5 Processor 7 | . . . 8 9 7 6 13 13 13 8 5 Protection 12 | . . 21 12 11 10 13 12 17 20 16 17 Energy Gun 2 | . 5 7 . . . . . 5 6 1 3 Energy Cannon 10 | . 8 10 20 17 11 8 7 . . 3 . Ballistic Gun 3 | . 14 3 . . . . . 4 6 6 10 Ballistic Cannon 1 | . . . . . 2 4 3 . . . 1 Naked Turns . | . . . . . . . . . . . . Heaviest Build 128 | 13 91 65 65 74 74 74 84 93 93 99 128 Greatest Support 240 | 40 40 43 43 63 80 120 130 240 240 240 240 Greatest Overweight (x) 2 | . 2 2 1 1 1 . . . . . . Average Overweight (x) . | . . 1 1 . . . . . . . . Largest Inventory Capacity 25 | 8 25 20 20 20 20 20 20 20 20 20 20 Average Capacity 19 | 6 20 20 20 20 20 20 20 20 20 20 20 Most Carried 20 | 4 15 20 20 20 20 20 20 20 20 20 20 Average Carried 17 | 1 9 16 19 19 19 18 19 19 19 19 18 Final Capacity 20 | 8 20 20 20 20 20 20 20 20 20 20 20 Final Carried 20 | 3 15 20 20 20 20 20 20 20 20 19 20 Class Distribution -------------------- 72% | Mutant 15% | Scavenger-Mutant 7% | Commander-Mutant 5% | Scavenger-Tank Dominant Class ---------------- Mutant | -10/Materials Mutant | -9/Materials Mutant | -9/Storage Mutant | -8/Materials Mutant | -7/Factory Mutant | -6/Factory Mutant | -6/Extension Scavenger-Mutant | -6/Cetus Scavenger-Mutant | -6/Archives Scavenger-Mutant | -6/Hub_04(d) Scavenger-Tank | -5/Factory Resources | -11 -10 -9 -9 -8 -7 -6 -6 -6 -6 -6 -5 ----------- Run | Scr Mat Mat Sto Mat Fac Fac Ext Cet Arc Hub Fac Matter Collected 2816 | 276 155 240 173 100 410 169 342 189 . 222 540 Remotely . | . . . . . . . . . . . . Salvage Created 7892 | 88 527 1158 1294 298 1607 233 561 45 154 459 1468 Parts 388 | 9 36 66 94 11 61 6 20 3 3 18 61 Haulers Intercepted 16 | . 2 4 6 1 1 . 1 . . . 1 Recyclers Shooed 13 | . 3 4 1 1 3 . . . . . 1 Parts Field Recycled . | . . . . . . . . . . . . Retrieved Matter . | . . . . . . . . . . . . Parts Self-Destructed . | . . . . . . . . . . . . Prevented . | . . . . . . . . . . . . Kills | -11 -10 -9 -9 -8 -7 -6 -6 -6 -6 -6 -5 ------- Run | Scr Mat Mat Sto Mat Fac Fac Ext Cet Arc Hub Fac Combat Hostiles Destroyed 109 | . 8 14 19 6 25 4 7 2 2 1 21 Guns 34 | . 8 4 . . . . . 2 2 . 18 Cannons 64 | . . 10 18 5 21 4 4 . . 1 1 AOE 2 | . . . . . . . . . . . 2 Classes Destroyed 16 | 2 6 2 2 . 1 1 1 . . . 1 Worker 7 | . 1 . 1 . 1 . . . . 1 3 Builder 2 | . . . 1 . . . . . . . 1 Tunneler 3 | 2 . . 1 . . . . . . . . Hauler 16 | . 2 4 6 1 1 . 1 . . . 1 Recycler 12 | 1 1 5 1 . 3 . . . . 1 . Mechanic 1 | . . . 1 . . . . . . . . Operator 5 | . 1 1 . . 1 . . . . 2 . Watcher 13 | . 3 2 2 1 2 . 1 . . . 2 Swarmer 15 | . 3 3 3 3 . . 1 2 . . . Grunt 49 | . 5 6 5 2 11 2 2 . . . 16 Brawler 1 | . . . . . . . . . . . 1 Duelist 4 | . . 1 1 . 1 . . . . . 1 Sentry 27 | . . 4 10 1 7 . 2 . 2 1 . Hunter 4 | . . . . . . 1 . . . . 3 Programmer 7 | . . . . . 6 1 . . . . . Behemoth 2 | . . . . . . . 2 . . . . Enhanced Grunt 1 | . . . . . . . . . . 1 . Thug 2 | . . . . . . . . . . 2 . Best Kill Streak 12 | 2 3 5 7 2 7 2 2 2 2 2 12 Combat Bots Only 7 | . 3 3 4 2 3 2 2 2 2 1 7 Max Kills in Single Turn 2 | 1 1 1 2 1 1 1 1 1 1 1 2 Gunslinging . | . . . . . . . . . . . . Exploded 2 | . . . . . . . . . . . 2 Melee . | . . . . . . . . . . . . Uniques/NPCs Destroyed . | . . . . . . . . . . . . Combat | -11 -10 -9 -9 -8 -7 -6 -6 -6 -6 -6 -5 -------- Run | Scr Mat Mat Sto Mat Fac Fac Ext Cet Arc Hub Fac Damage Taken 8143 | . 445 464 822 255 1787 575 657 141 42 755 2200 Core 595 | . 34 92 133 8 172 57 3 . . 6 90 Absorbed by Shields 156 | . . . . . 88 . 68 . . . . Core Remaining (%) 82 | 100 86 . 43 98 75 . . . . 92 . Volleys Fired 510 | 6 61 77 65 19 100 21 42 10 4 30 75 Largest 3 | 2 2 2 2 2 2 2 2 2 2 2 3 Hottest 275 | 60 85 124 136 150 150 155 155 275 115 125 150 Shots Fired 1051 | 12 121 140 127 38 200 42 83 18 7 52 211 Gun 425 | 12 104 65 . . . . . 14 7 33 190 Cannon 626 | . 17 75 127 38 200 42 83 4 . 19 21 Launcher . | . . . . . . . . . . . . Special . | . . . . . . . . . . . . Kinetic 367 | 6 61 26 . . 47 15 6 9 4 29 164 Thermal 684 | 6 60 114 127 38 153 27 77 9 3 23 47 Explosive . | . . . . . . . . . . . . Electromagnetic . | . . . . . . . . . . . . Robot Hit Streak 25 | 4 6 11 11 11 25 8 17 3 4 7 7 Robot Miss Streak 5 | 1 4 3 5 3 3 3 2 3 1 3 5 Penetration Max 1 | . . . . . 1 . . 1 . 1 1 Secondary Targets 6 | . . . . . . . . . . . 6 Max Gunslinging Chain 1 | . . . . . . . . . . . 1 Shots Hit Robots 633 | 7 74 84 76 23 144 24 51 9 5 26 110 Core Hits 248 | 4 29 34 31 8 47 6 15 5 2 16 51 Critical Kills 20 | . . . 2 1 4 . 3 1 . 1 8 Critical Parts Destroyed 24 | . . . . . . . . 2 . 4 18 Critical Strikes 52 | . . 5 2 1 5 1 3 3 1 5 26 Burn 5 | . . 5 . . . . . . . . . Meltdown 8 | . . . 2 1 4 . 1 . . . . Destroy 37 | . . . . . . . 2 3 1 5 26 Blast 2 | . . . . . 1 1 . . . . . Melee Attacks 85 | . . . 9 . . . 76 . . . . Impact 85 | . . . 9 . . . 76 . . . . Slashing . | . . . . . . . . . . . . Piercing . | . . . . . . . . . . . . Sneak Attacks . | . . . . . . . . . . . . Combat Hostiles . | . . . . . . . . . . . . Follow-up Attacks . | . . . . . . . . . . . . Damage Inflicted 16609 | 72 885 1475 1649 597 4068 614 1647 364 124 1307 3807 Guns 5659 | 72 779 610 . . . . . 239 124 611 3224 Cannons 10075 | . 104 832 1643 597 4068 614 1641 109 . 347 120 Explosions 764 | . . . . . . . . . . 341 423 Melee . | . . . . . . . . . . . . Ramming 111 | . 2 33 6 . . . 6 16 . 8 40 Kinetic 5296 | 17 350 117 . . 871 257 75 237 105 478 2789 Thermal 10861 | 55 533 1325 1643 597 3197 357 1566 111 19 480 978 Explosive . | . . . . . . . . . . . . Electromagnetic 341 | . . . . . . . . . . 341 . Impact . | . . . . . . . . . . . . Slashing . | . . . . . . . . . . . . Piercing . | . . . . . . . . . . . . Highest Corruption 14 | . . . . . 1 1 1 7 1 14 6 Average Corruption 1 | . . . . . 1 1 1 1 1 2 5 Corruption Purged 8 | . . . . . 1 . 1 6 . . . Corruption Blocked . | . . . . . . . . . . . . Effects 39 | . . . . . 7 . 4 7 3 16 2 Message Errors 8 | . . . . . 1 . 1 3 . 3 . Matter Fused 10 | . . . . . 1 . 3 . . 6 . Heat Flow Errors 4 | . . . . . 2 . . . 1 1 . Energy Discharges 7 | . . . . . 2 . . 2 . 3 . Parts Rejected 1 | . . . . . . . . . . . 1 Data Loss (minor) 8 | . . . . . 1 . . 2 2 2 1 Weapon Failures 1 | . . . . . . . . . . 1 . Overload Shots 3 | . . . . . . . . 3 . . . Overflow Damage 205 | . . . 4 30 49 35 32 . . 44 11 Projectiles 164 | . . . 4 30 49 35 32 . . 3 11 Explosions 41 | . . . . . . . . . . 41 . Melee . | . . . . . . . . . . . . Knockbacks 15 | . . 1 . . 7 4 1 . . 2 . Impact 1 | . . 1 . . . . . . . . . Kinetic 14 | . . . . . 7 4 1 . . 2 . Secondary . | . . . . . . . . . . . . Self-Inflicted Damage 105 | . . . . . . . . . . 105 . Shots 1 | . . . . . . . . . . 1 . Rammed 13 | . 1 3 2 . . . 1 1 . 1 4 Targets Rammed 14 | . 1 3 3 . . . 1 1 . 1 4 Kicked . | . . . . . . . . . . . . Crushed 1 | . . . 1 . . . . . . . . Highest Temperature 464 | 20 96 120 160 93 174 2 78 464 146 318 241 Average Temperature 56 | 12 36 33 31 42 28 2 20 147 54 133 56 Received Heat Transfer 2257 | . 177 162 234 90 559 45 159 9 . 141 681 Effects 5 | . . . . . . . . 2 . 3 . Shutdowns 2 | . . . . . . . . 2 . . . Energy Bleed 1 | . . . . . . . . . . 1 . Interference 2 | . . . . . . . . . . 2 . Siege Activations . | . . . . . . . . . . . . Robots Corrupted 1 | . . . . . . . . . . 1 . Combat Hostiles . | . . . . . . . . . . . . Parts Fried 2 | . . . . . . . 1 . . 1 . Impact Corruptions . | . . . . . . . . . . . . Robots Melted 11 | . . . 2 1 5 . 3 . . . . Combat Hostiles 9 | . . . 1 1 4 . 3 . . . . Parts Melted 41 | . . 7 15 . 14 . 5 . . . . Heat Transferred 16580 | 125 1214 3182 2960 888 4403 444 1980 148 37 222 977 Parts Sabotaged . | . . . . . . . . . . . . Parts Stolen . | . . . . . . . . . . . . Parts Stripped . | . . . . . . . . . . . . Power Chain Reactions . | . . . . . . . . . . . . Missiles Intercepted . | . . . . . . . . . . . . Alert | -11 -10 -9 -9 -8 -7 -6 -6 -6 -6 -6 -5 ------- Run | Scr Mat Mat Sto Mat Fac Fac Ext Cet Arc Hub Fac Peak Influence 1092 | 15 191 207 278 152 463 282 594 921 494 817 1092 Initial 389 | . 9 . 87 90 20 226 19 257 308 172 389 Average 253 | 7 49 69 143 63 223 166 365 563 478 506 777 Maximum Alert Level 3 | . . 1 1 . 2 1 2 3 2 3 3 Low Security (%) 53 | 100 100 94 86 100 32 62 17 . . 14 . Level 1 22 | . . 5 13 . 61 37 27 26 9 16 7 Level 2 19 | . . . . . 6 . 55 59 90 54 28 Level 3 5 | . . . . . . . . 13 . 15 63 Level 4 . | . . . . . . . . . . . . Level 5 . | . . . . . . . . . . . . High Security . | . . . . . . . . . . . . Max Security . | . . . . . . . . . . . . Squads Dispatched 29 | . . 1 2 . 8 3 3 . . 5 7 Investigation 2 | . . . . . 1 . 1 . . . . Extermination 7 | . . . . . 5 1 . . . . 1 Reinforcement 16 | . . 1 2 . 1 2 2 . . 5 3 Assault 2 | . . . . . . . . . . . 2 Garrison 2 | . . . . . 1 . . . . . 1 Intercept . | . . . . . . . . . . . . Searches Triggered . | . . . . . . . . . . . . Construction Impeded 3 | . . . . . 1 . . . . 1 1 Haulers Reinforced 1 | . . . . . . . . . . . 1 Active Scanning Responses . | . . . . . . . . . . . . Cargo Convoy Interrupts . | . . . . . . . . . . . . Stealth | -11 -10 -9 -9 -8 -7 -6 -6 -6 -6 -6 -5 --------- Run | Scr Mat Mat Sto Mat Fac Fac Ext Cet Arc Hub Fac Distress Signals 11 | . 1 2 4 1 . . . 1 . 1 1 Communications Jammed 8 | . . . . . 6 2 . . . . . Distress Signals 6 | . . . . . 6 . . . . . . Times Spotted 228 | . 19 25 24 9 33 5 30 17 4 25 37 Peak Tracking Total 8 | . 4 7 2 2 4 2 6 6 1 8 6 Tactical Retreats 8 | . 1 2 . . 2 . 1 1 . . 1 Traps | -11 -10 -9 -9 -8 -7 -6 -6 -6 -6 -6 -5 ------- Run | Scr Mat Mat Sto Mat Fac Fac Ext Cet Arc Hub Fac Traps Triggered 13 | . 1 3 2 . 2 2 . . . 3 . Indirectly . | . . . . . . . . . . . . Trap Hack Attempts . | . . . . . . . . . . . . Triggered . | . . . . . . . . . . . . Disarmed . | . . . . . . . . . . . . Reprogrammed 1 | . . . . . . . 1 . . . . Reused . | . . . . . . . . . . . . Traps Extracted . | . . . . . . . . . . . . Installed . | . . . . . . . . . . . . Triggered . | . . . . . . . . . . . . Machines | -11 -10 -9 -9 -8 -7 -6 -6 -6 -6 -6 -5 ---------- Run | Scr Mat Mat Sto Mat Fac Fac Ext Cet Arc Hub Fac Machines Disabled 34 | . 1 1 4 . 3 2 2 4 2 12 3 Max in Single Turn 7 | . 1 1 1 . 1 1 . . 1 7 1 Garrison Access 2 | . . . 1 . . . . . . . 1 Network Hub 1 | . . . . . . . . . . 1 . Machines Sabotaged . | . . . . . . . . . . . . Garrisons Compromised . | . . . . . . . . . . . . Overloaded Fab Kills . | . . . . . . . . . . . . Hacking | -11 -10 -9 -9 -8 -7 -6 -6 -6 -6 -6 -5 --------- Run | Scr Mat Mat Sto Mat Fac Fac Ext Cet Arc Hub Fac Machines Accessed 30 | . 1 . 2 . 1 3 15 3 1 2 2 Terminals 22 | . 1 . 1 . . . 15 3 . 1 1 Fabricators 1 | . . . . . . 1 . . . . . Repair Stations 1 | . . . . . . . . . . . 1 Recycling Units . | . . . . . . . . . . . . Scanalyzers 1 | . . . . . 1 . . . . . . Garrison Access 4 | . . . 1 . . 2 . . . 1 . Total Hacks 81 | . 1 . 4 . 2 5 29 5 25 6 4 Successful 50 | . 1 . 2 . 1 1 15 1 25 3 1 Failed 31 | . . . 2 . 1 4 14 4 . 3 3 Catastrophic 5 | . . . . . . 1 2 1 . 1 . Database Lockouts . | . . . . . . . . . . . . Manual 7 | . . . 2 . . . . 2 1 . 2 Terminals 44 | . 1 . 3 . . . 29 5 . 4 2 Fabricators 2 | . . . . . . 2 . . . . . Repair Stations 2 | . . . . . . . . . . . 2 Recycling Units . | . . . . . . . . . . . . Scanalyzers 2 | . . . . . 2 . . . . . . Garrison Access 6 | . . . 1 . . 3 . . . 2 . Terminal Hacks 47 | . 1 . 1 . . . 15 1 25 3 1 Record 30 | . . . . . . . 2 1 25 2 . Prototype ID Bank 1 | . . . . . . . 1 . . . . Open Door 9 | . . . 1 . . . 8 . . . . Alert Level 2 | . . . . . . . 1 . . . 1 Reprogram Traps 1 | . . . . . . . 1 . . . . Dispatch Records 1 | . . . . . . . 1 . . . . Extermination Status 1 | . . . . . . . . . . 1 . Zone Layout 2 | . 1 . . . . . 1 . . . . Fabricator Hacks 1 | . . . . . . 1 . . . . . Build 1 | . . . . . . 1 . . . . . Repair Station Hacks . | . . . . . . . . . . . . Recycling Unit Hacks . | . . . . . . . . . . . . Scanalyzer 1 | . . . . . 1 . . . . . . Insert Component 1 | . . . . . 1 . . . . . . Garrison Access Hacks 1 | . . . 1 . . . . . . . . Seal Access 1 | . . . 1 . . . . . . . . Unauthorized Hacks . | . . . . . . . . . . . . Terminals . | . . . . . . . . . . . . Fabricators . | . . . . . . . . . . . . Repair Stations . | . . . . . . . . . . . . Recycling Units . | . . . . . . . . . . . . Scanalyzers . | . . . . . . . . . . . . Garrison Access . | . . . . . . . . . . . . Data Cores Recovered 3 | . 1 . . . 1 . . . . 1 . Used . | . . . . . . . . . . . . Hacking Detections 19 | . . . 1 . 1 3 7 4 . 2 1 Full Trace Events 1 | . . . . . . . 1 . . . . Feedback Events . | . . . . . . . . . . . . Feedback Blocked . | . . . . . . . . . . . . Robot Schematics Acquired . | . . . . . . . . . . . . Robots Built . | . . . . . . . . . . . . Authchips . | . . . . . . . . . . . . Time . | . . . . . . . . . . . . Total Robot Build Rating . | . . . . . . . . . . . . Part Schematics Acquired . | . . . . . . . . . . . . Parts Built 1 | . . . . . . 1 . . . . . Authchips . | . . . . . . . . . . . . Time 47 | . . . . . . 47 . . . . . Total Part Build Rating 5 | . . . . . . 5 . . . . . Parts Repaired . | . . . . . . . . . . . . Time . | . . . . . . . . . . . . Parts Recycled . | . . . . . . . . . . . . Recycled Matter . | . . . . . . . . . . . . Retrieved Matter . | . . . . . . . . . . . . Retrieved Components . | . . . . . . . . . . . . Parts Scanalyzed . | . . . . . . . . . . . . Part Schematics Acquired . | . . . . . . . . . . . . Parts Damaged . | . . . . . . . . . . . . Bothacking | -11 -10 -9 -9 -8 -7 -6 -6 -6 -6 -6 -5 ------------ Run | Scr Mat Mat Sto Mat Fac Fac Ext Cet Arc Hub Fac Used RIF Installer . | . . . . . . . . . . . . Robots Hacked . | . . . . . . . . . . . . Non-combat . | . . . . . . . . . . . . Combat . | . . . . . . . . . . . . Robot Hacks Applied . | . . . . . . . . . . . . Relay Couplers Released 3 | . . . . . . . . . . . 3 Machine Destruction 3 | . . . . . . . . . . . 3 Fabnet Peak Effective % . | . . . . . . . . . . . . Robots Rewired 7 | . . . . . . . 7 . . . . Allies Hacked . | . . . . . . . . . . . . Hacks Repelled . | . . . . . . . . . . . . Allies | -11 -10 -9 -9 -8 -7 -6 -6 -6 -6 -6 -5 -------- Run | Scr Mat Mat Sto Mat Fac Fac Ext Cet Arc Hub Fac Total Allies 25 | . . . . . . . 22 3 . . . Largest Group 17 | . . . . . . . 17 16 7 6 . Highest-Rated Group 632 | . . . . . . . 632 601 412 386 . Highest-Rated Ally 159 | . . . . . . . 159 159 96 96 . Total Orders . | . . . . . . . . . . . . Ally Attacks 369 | . . . . . . . 132 141 16 80 . Total Damage 8683 | . . . . . . . 2861 2824 600 2398 . Kills 68 | . . . . . . . 24 25 2 17 . Allies Corrupted 2 | . . . . . . . . . . 2 . Allies Melted 1 | . . . . . . . 1 . . . . Intel | -11 -10 -9 -9 -8 -7 -6 -6 -6 -6 -6 -5 ------- Run | Scr Mat Mat Sto Mat Fac Fac Ext Cet Arc Hub Fac Robot Analysis Total . | . . . . . . . . . . . . Derelict Logs Recovered . | . . . . . . . . . . . . Drone Launches . | . . . . . . . . . . . . Drone Recoveries . | . . . . . . . . . . . . Exploration | -11 -10 -9 -9 -8 -7 -6 -6 -6 -6 -6 -5 ------------- Run | Scr Mat Mat Sto Mat Fac Fac Ext Cet Arc Hub Fac Turns Passed 14852 | 145 1630 1486 2029 1017 2323 1068 2361 879 304 831 779 Spaces Moved 6265 | 82 606 492 675 377 1074 546 1043 447 180 431 312 Core 17 | 17 . . . . . . . . . . . Treads 6248 | 65 606 492 675 377 1074 546 1043 447 180 431 312 Legs . | . . . . . . . . . . . . Wheels . | . . . . . . . . . . . . Hover . | . . . . . . . . . . . . Flight . | . . . . . . . . . . . . Fastest Speed 50 | 50 160 240 240 170 170 170 168 160 160 160 160 Average Speed 191 | 137 230 240 240 244 173 170 169 160 160 160 160 Slowest Speed 320 | 160 320 320 240 250 250 170 170 168 160 160 160 Overloaded Moves . | . . . . . . . . . . . . Propulsion Burnouts . | . . . . . . . . . . . . Robots Hopped . | . . . . . . . . . . . . Cave-ins Triggered . | . . . . . . . . . . . . Exploration Rate (%) 50 | 6 82 46 92 36 21 14 81 83 95 39 8 Regions Visited 11 Branch Regions 5 Pre-discovered Areas . | . . . . . . . . . . . . Known Exits Taken 5 | . . . . . . 1 1 1 1 1 . Unknown Exits Taken 6 | 1 1 1 1 1 1 . . . . . . Scrap Searched . | . . . . . . . . . . . . Spaces Dug 23 | . . . 2 2 1 6 4 1 . 7 . Terrain Destroyed 317 | . . . 2 10 15 8 14 3 1 185 79 Melee 6 | . . . 2 . . . 4 . . . . Projectile 123 | . . . . 10 15 8 10 3 1 17 59 AOE 187 | . . . . . . . . . . 168 19 Terrain Rammed . | . . . . . . . . . . . . Walls Destroyed . | . . . . . . . . . . . . Machines Disabled . | . . . . . . . . . . . . Actions | -11 -10 -9 -9 -8 -7 -6 -6 -6 -6 -6 -5 --------- Run | Scr Mat Mat Sto Mat Fac Fac Ext Cet Arc Hub Fac Total 7980 | 104 725 651 938 438 1336 645 1419 592 190 515 427 Wait 668 | . 28 33 143 11 110 53 140 93 5 36 16 Move 6254 | 81 605 491 674 376 1073 545 1042 446 179 430 312 Hop . | . . . . . . . . . . . . Pick Up 123 | 10 18 22 12 10 14 10 5 10 1 4 7 Fast Attach 19 | . . 1 3 3 7 . . 4 . 1 . Attach 46 | 7 3 8 5 3 3 6 1 3 . 2 5 Detach 4 | . . . 1 . . . . 1 . . 2 Swap 75 | . 5 6 11 4 11 4 17 8 . 6 3 Drop 94 | . 4 10 12 12 18 6 7 16 1 5 3 Fire 510 | 6 61 77 65 19 100 21 42 10 4 30 75 Melee 85 | . . . 9 . . . 76 . . . . Ram . | . . . . . . . . . . . . Kick . | . . . . . . . . . . . . Crush 14 | . 1 3 3 . . . 1 1 . 1 4 Escape Stasis 2 | . . . . . . . 2 . . . . Rewire 86 | . . . . . . . 86 . . . . Trap . | . . . . . . . . . . . . Miscellaneous . | . . . . . . . . . . . . Route ------- -11/Scrapyard -10/Materials (discovered 5 exits: [*Mat x3] / [*Min x2]) -9/Materials (discovered 2 exits: [*Mat] / *Sto) -9/Storage -8/Materials -7/Factory (discovered 2 exits: *Fac x2) -6/Factory -6/Extension (discovered 3 exits: *Fac x2 / *Cet) -6/Cetus (discovered 2 exits: *Fac / *Arc) -6/Archives (discovered 3 exits: *Fac / *Hub x2) -6/Hub_04(d) (discovered 2 exits: *Fac x2) -5/Factory History --------- Turn | Location | Event 6 | -11/Scrapyard | Discovered new exit (range 16) 146 | -11/Scrapyard | Entered Materials 303 | -10/Materials | Build established: Mutant 308 | -10/Materials | Discovered new exit (range 13) 603 | -10/Materials | Discovered new exit (range 13) 902 | -10/Materials | Discovered new exit (range 3) 1313 | -10/Materials | Discovered new exit (range 13) 1740 | -10/Materials | Discovered new exit (range 11) 1776 | -10/Materials | Entered another Materials area 1776 | -9/Materials | Evolved 2 slots: Utility x2 2948 | -9/Materials | Discovered new exit (range 16) 3007 | -9/Materials | Discovered new exit (range 16) 3262 | -9/Materials | Entered Storage 3312 | -9/Storage | Found Prototype Launcher 3312 | -9/Storage | Identified Scatter Rocket Array 4409 | -9/Storage | Core integrity fell below 50% 5019 | -9/Storage | Discovered new exit (range 16) 5291 | -9/Storage | Entered Materials 5291 | -8/Materials | Evolved 2 slots: Propulsion x1, Utility x1 6156 | -8/Materials | Discovered new exit (range 16) 6308 | -8/Materials | Entered Factory 6308 | -7/Factory | Evolved 2 slots: Propulsion x1, Utility x1 6563 | -7/Factory | Discovered new exit (range 6) 6821 | -7/Factory | Garrison activated, responded to threat 8461 | -7/Factory | Discovered new exit (range 11) 8631 | -7/Factory | Entered another Factory area 8631 | -6/Factory | Evolved 2 slots: Propulsion x2 8783 | -6/Factory | Fabricated Cloaking Device (x1) 9657 | -6/Factory | Discovered new exit (range 16) 9697 | -6/Factory | Identified exit to Extension 9699 | -6/Factory | Entered Extension 9835 | -6/Extension | Rescued a captive Derelict 9836 | -6/Extension | Rescued a captive Derelict 10190 | -6/Extension | Rescued a captive Derelict 10191 | -6/Extension | Rescued a captive Derelict 10229 | -6/Extension | Rescued a captive Derelict 10375 | -6/Extension | Rescued A7 10423 | -6/Extension | Spotted B-75 Beast 10450 | -6/Extension | Spotted B-75 Beast 10462 | -6/Extension | Destroyed B-75 Beast 10469 | -6/Extension | Destroyed B-75 Beast 10608 | -6/Extension | Discovered new exit (range 3) 10609 | -6/Extension | Identified exit to Factory 10671 | -6/Extension | Rescued a captive Derelict 10744 | -6/Extension | Rescued a captive Derelict 10745 | -6/Extension | Rescued a captive Derelict 10859 | -6/Extension | Rescued a captive Derelict 10916 | -6/Extension | Rescued a captive Derelict 11129 | -6/Extension | Rescued a captive Derelict 11162 | -6/Extension | Rescued a captive Derelict 11206 | -6/Extension | Rescued a captive Derelict 11207 | -6/Extension | Rescued a captive Derelict 11276 | -6/Extension | Discovered exit to Factory (range 10) 11278 | -6/Extension | Discovered new exit (range 6) 11305 | -6/Extension | Identified exit to Cetus 11330 | -6/Extension | Build established: Commander-Mutant 12060 | -6/Extension | Entered Cetus 12060 | -6/Cetus | Accompanied by 16 allies (A7) 12065 | -6/Cetus | Acquired a Cetus Manufacturing Module code from A7 12082 | -6/Cetus | Spotted Cetus Guard 12082 | -6/Cetus | Spotted Cetus Guard 12086 | -6/Cetus | Spotted Cetus Guard 12090 | -6/Cetus | Spotted Cetus Guard 12094 | -6/Cetus | Allies destroyed Cetus Guard 12099 | -6/Cetus | Allies destroyed Cetus Guard 12101 | -6/Cetus | Allies destroyed Cetus Guard 12105 | -6/Cetus | Allies destroyed Cetus Guard 12398 | -6/Cetus | Extracted ID and sensor layout for unrecognized location from A7's data core 12415 | -6/Cetus | Build established: Scavenger-Mutant 12459 | -6/Cetus | Started Cetus Manufacturing Module 12484 | -6/Cetus | Manufactured an Enhanced Grunt 12509 | -6/Cetus | Manufactured an Enhanced Grunt 12534 | -6/Cetus | Manufactured an Enhanced Grunt 12538 | -6/Cetus | Cetus Manufacturing Module disabled 12577 | -6/Cetus | Discovered new exit (range 15) 12757 | -6/Cetus | Discovered exit to Factory (range 15) 12920 | -6/Cetus | Identified exit to Archives 12939 | -6/Cetus | Entered Archives 12939 | -6/Archives | Accompanied by 7 allies 12978 | -6/Archives | Unable to access archive contents 12998 | -6/Archives | Unable to access archive contents 13014 | -6/Archives | Discovered new exit (range 16) 13038 | -6/Archives | Identified exit to Hub_04(d) 13096 | -6/Archives | Discovered exit to Factory (range 15) 13197 | -6/Archives | Discovered exit to Hub_04(d) (range 16) 13243 | -6/Archives | Entered Hub_04(d) 13243 | -6/Hub_04(d) | Accompanied by 6 allies 13680 | -6/Hub_04(d) | Found Prototype Device 13681 | -6/Hub_04(d) | Identified Exp. Thermal Shield 13716 | -6/Hub_04(d) | Discovered exit to Factory (range 3) 13810 | -6/Hub_04(d) | Found Hvy. Reactive Plating 14049 | -6/Hub_04(d) | Discovered exit to Factory (range 6) 14054 | -6/Hub_04(d) | Network Hub disabled 14065 | -6/Hub_04(d) | Spotted Lightning 14067 | -6/Hub_04(d) | Spotted Lightning 14073 | -6/Hub_04(d) | System corruption reached 10% 14074 | -6/Hub_04(d) | Entered Factory 14074 | -5/Factory | Evolved 2 slots: Utility x1, Weapon x1 14212 | -5/Factory | Garrison activated, responded to threat 14277 | -5/Factory | Destroyed 7 combat bots 14360 | -5/Factory | Build established: Scavenger-Tank 14674 | -5/Factory | First assault squad dispatched 14853 | -5/Factory | Self-destructed Last Messages --------------- 14834_ G-50 Soldier unfolds itself. 14834_ B-60 Warrior unfolds itself. 14834_ G-50 Soldier unfolds itself. 14834_ M-28 Smith unfolds itself. 14834_ Slammed into H-66 Slayer. 14839_ Penetrated by Slug. 14839_ Slammed into H-66 Slayer. 14841_ Penetrated by Slug. 14842_ Adv. KE Penetrator destroyed. 14842_ Penetrated by Slug. 14842_ Acquired 23 matter. 14844_ Penetrated by Slug. 14847_ HV Slug penetrates H-66 Slayer. 14847_ H-66 Slayer suffers critical hit (Destroy). 14847_ Destroyed Lgt. Fission Core. 14848_ Penetrated by Slug. 14849_ HV Slug penetrates H-66 Slayer. 14850_ System corrupted: Hvy. Reactive Plating rejected. 14851_ Imp. Cooling System destroyed. 14851_ Penetrated by Slug. Map ----- +----------------------------------------------------+ | ???????????????? =% """"" # # | | ???????????????## | """"" # # % | | ???????????????# ! """""" # =# ! | | ???????????????# [ """"" # * = # | | ????????????????# = # ! * ######### | | ????????????????? "# ######## =%= | | ??????????????????? ##?##????# ####""" | | ??????? ????????????? #????# #??#### | | ?????? ###########"##???# = #?????? | | ?????? "%"#???# ![] #?????? | | ?????? " #???# ![] %# ????? | | ?????? #???# ^ [[ # ????? | | ?????? ########## #???# ^ # #???? | | ??????? ????????????## ##??# % # #???? | | ????????????????????# #??# !# #???? | | ????????????????????# #### % %%# #???? | | ????????????????????# * !*!# #???? | | ????????????????????# ########### %% " #???? | | ????????????????????# # ! ! #" " #???? | | ????????????????????##" "## "" "" ## " #???? | | ???????????????""????## ### "!" ## ##????? | | ???????????????? ????# " # !## ####### | | ?????????????????] #?# "## ! ## | | ??????????# ######+### ###=%= [ ## ##### | | ??????????# ####/######## # | | ??????????# @ h # """ | | ??????????# h % # """ | | ???????? % # """ | | ????????? ! + | | ????????? % %| # | | ?????????? # | | ?????????? % ######## # | | ?????????? * * # # # " | | ?????????? % k T # # " | | ???????????## %= [ # # # | | ????????????# #########;##[ ####### # # " | | ????????????#?????????# ## ###???# # # " | | ??????????????????????## # #######! # # | | ???????????????????????### ######## ###+# | | ????????????????########## ######## ### # | | ????????????????# # | | ????????????????# # ################ | | ????????????????#"""" # #?????????????? | | ????????????????#"""" # #?????????????# | | ????????????????#"""" + #?????????????# | | ????????????????#"""" #+####+#######?????????# | | ????????????????# # T #?????????#! | | ????????????????# # #?????????# | | ????????????????# # #?????????## | | ????????????????########## """"""""" #??????????? | +----------------------------------------------------+ Best States ------------- Heat Dissipation 75 Energy Generation 25 Energy Capacity 350 Matter Stores 300 Matter Capacity 300 Sight Range 16 Terrain Scan Density 10 Jamming Range 12 Armor Coverage 1050 Resistance: KI 40 Resistance: TH 30 Evasion (%) 50 Targeting Accuracy 6 Recoil Reduction 6 Item Schematics ----------------- None Robot Schematics ------------------ None Fabricated ------------ Cloaking Device | x1 | -6/Factory | Preloaded Alien Tech Used ----------------- None Achievements -------------- None Challenges ------------ None Game ------ Seed ReactionFireThermoblaster Manual? 0 Play Time 01:33:16 Cumulative 57.2 hours Start 2022.05.04 @ 04:17:18 End 2022.06.26 @ 02:07:00 Sessions 4 Manual Loads 0 Difficulty Rogue Special Mode None Game No. 55 Rogue 55 Adventurer 0 Explorer 0 Win Type - Total 0 Types 0/0/0/0/0/0/0/0/0 Lore% 33 Gallery% 48 Achievement% 40 Wizard Run 0 Options --------- ASCII 0 Keyboard 0 Movement Arrows Keybinds 0 Fullscreen 2 Font 18/SmallcapsGlow Map View 76x50 Tactical HUD 1 Map Filters NONE Filters NONE Steam 1 RUN: ada0b09d-39ea-4b44-ad3e-fd8fc2d3dfd1